fUSD/lending_fUSD_20250824
["ID","MTS","AMOUNT","RATE_DAILY","PERIOD"]
[381094653,1756033834151,-500.0,0.000248,2]
[381094654,1756033834169,-500.0,0.000248,2]
[381094655,1756033834178,-500.0,0.000248,2]
[381094656,1756033834189,-500.0,0.000248,2]
[381094657,1756033834198,-500.0,0.000248,2]
[381094658,1756033834208,-800.0,0.000248,2]
[381094659,1756033834218,-500.0,0.000248,2]
[381094660,1756033834227,-500.0,0.000248,2]
[381094661,1756033834236,-500.0,0.000248,2]
[381094662,1756033834246,-500.0,0.000248,2]
[381094663,1756033834255,-500.0,0.000248,2]
[381094664,1756033834265,-500.0,0.000248,2]
[381094665,1756033834274,-500.0,0.000248,2]
[381094666,1756033834283,-500.0,0.000248,2]
[381094667,1756033834293,-500.0,0.000248,2]
[381094668,1756033834302,-500.0,0.000248,2]
[381094669,1756033834311,-500.0,0.000248,2]
[381094670,1756033834321,-500.0,0.000248,2]
[381094671,1756033834331,-500.0,0.000248,2]
[381094672,1756033834341,-177.07375,0.000248,2]
[381094673,1756033834350,-400.0,0.000248,9]
[381094674,1756033834359,-165.7,0.000248,11]
[381094675,1756033834369,-500.0,0.000248,2]
[381094676,1756033834383,-33351.1265563,0.000248,3]
[381094677,1756033834392,-458.63746581,0.000248,3]
[381094678,1756033834402,-150.0,0.00024802,4]
[381094679,1756033834411,-150.0,0.00024814,4]
[381094680,1756033834422,-157.82197178,0.00024819,4]
[381094681,1756033834432,-150.0,0.0002483,4]
[381094682,1756033834441,-150.0,0.00024836,4]
[381094683,1756033834452,-150.0,0.00024836,4]
[381094684,1756033834461,-157.82197178,0.00024846,4]
[381094685,1756033834470,-150.0,0.00024846,4]
[381094686,1756033834480,-150.0,0.00024851,4]
[381094687,1756033834489,-500.08,0.00024856,2]
[381094688,1756033834499,-500.0,0.00024856,2]
[381094689,1756033834508,-500.38,0.00024856,2]
[381094690,1756033834518,-1000.0,0.00024866,2]
[381094691,1756033834527,-1000.0,0.00024866,2]
[381094692,1756033834537,-150.0,0.00024869,4]
[381094693,1756033834546,-150.0,0.00024871,4]
[381094694,1756033834556,-150.0,0.00024872,4]
[381094695,1756033834565,-157.82197178,0.00024873,4]
[381094696,1756033834576,-601.0,0.00024877,2]
[381094697,1756033834586,-500.0,0.00024877,2]
[381094698,1756033834597,-500.0,0.0002488,2]
[381094699,1756033834616,-844.35788172,0.0002488,3]
[381094700,1756033834626,-5000.0,0.0002488,2]
[381094701,1756033834635,-150.0,0.00024881,4]
[381094702,1756033834644,-150.0,0.00024888,4]
[381094703,1756033834654,-1000.0,0.00024889,2]
[381094704,1756033834664,-218.981496,0.0002489,7]
[381094705,1756033834673,-151.0,0.0002489,7]
[381094706,1756033834682,-151.0,0.0002489,7]
[381094707,1756033834692,-151.0,0.0002489,7]
[381094708,1756033834702,-151.0,0.0002489,7]
[381094709,1756033834711,-151.0,0.0002489,7]
[381094710,1756033834720,-151.0,0.0002489,7]
[381094711,1756033834730,-151.0,0.0002489,7]
[381094712,1756033834739,-151.0,0.0002489,7]
[381094713,1756033834748,-151.0,0.0002489,7]
[381094714,1756033834757,-151.0,0.0002489,7]
[381094715,1756033834767,-159.582382,0.0002489,7]
[381094716,1756033834777,-151.0,0.0002489,7]
[381094717,1756033834791,-151.0,0.0002489,7]
[381094718,1756033834801,-151.0,0.0002489,7]
[381094719,1756033834810,-151.0,0.0002489,7]
[381094720,1756033834820,-151.0,0.0002489,7]
[381094721,1756033834829,-151.0,0.0002489,7]
[381094722,1756033834839,-151.0,0.0002489,7]
[381094723,1756033834848,-288.609845,0.0002489,7]
[381094724,1756033834857,-151.0,0.0002489,7]
[381094725,1756033834867,-230.095958,0.0002489,7]
[381094726,1756033834876,-151.0,0.0002489,7]
[381094727,1756033834885,-151.0,0.0002489,7]
[381094728,1756033834895,-151.0,0.0002489,7]
[381094729,1756033834904,-151.0,0.0002489,7]
[381094730,1756033834914,-151.0,0.0002489,7]
[381094731,1756033834923,-151.0,0.0002489,7]
[381094732,1756033834932,-151.0,0.0002489,7]
[381094733,1756033834941,-151.0,0.0002489,7]
[381094734,1756033834951,-151.0,0.0002489,7]
[381094735,1756033834960,-151.0,0.0002489,7]
[381094736,1756033834970,-293.09396,0.0002489,7]
[381094737,1756033834980,-151.0,0.0002489,7]
[381094738,1756033834989,-151.0,0.0002489,7]
[381094739,1756033834998,-151.0,0.0002489,7]
[381094740,1756033835009,-151.0,0.0002489,7]
[381094741,1756033835018,-151.0,0.0002489,7]
[381094742,1756033835028,-249.169339,0.0002489,7]
[381094743,1756033835038,-249.169339,0.0002489,7]
[381094744,1756033835048,-249.169339,0.0002489,7]
[381094745,1756033835057,-249.169339,0.0002489,7]
[381094746,1756033835067,-151.0,0.0002489,7]
[381094747,1756033835076,-151.0,0.0002489,7]
[381094748,1756033835086,-151.0,0.0002489,7]
[381094749,1756033835096,-151.0,0.0002489,7]
[381094750,1756033835105,-151.0,0.0002489,7]
[381094751,1756033835115,-213.332556,0.0002489,7]
[381094752,1756033835124,-151.0,0.0002489,7]
[381094753,1756033835133,-151.0,0.0002489,7]
[381094754,1756033835143,-151.0,0.0002489,7]
[381094755,1756033835152,-151.0,0.0002489,7]
[381094756,1756033835162,-151.0,0.0002489,7]
[381094757,1756033835172,-272.342664,0.0002489,7]
[381094758,1756033835182,-458.63746581,0.0002489,7]
[381094759,1756033835191,-620.12,0.00024899,2]
[381094760,1756033835200,-157.82197178,0.000249,4]
[381094761,1756033835210,-151.0,0.000249,7]
[381094762,1756033835219,-151.0,0.000249,7]
[381094763,1756033835229,-151.0,0.000249,7]
[381094764,1756033835239,-151.0,0.000249,7]
[381094765,1756033835249,-151.0,0.000249,7]
[381094766,1756033835259,-151.0,0.000249,7]
[381094767,1756033835268,-151.0,0.000249,7]
[381094768,1756033835278,-151.0,0.000249,7]
[381094769,1756033835287,-151.0,0.000249,7]
[381094770,1756033835296,-151.0,0.000249,7]
[381094771,1756033835306,-151.0,0.000249,7]
[381094772,1756033835315,-151.0,0.000249,7]
[381094773,1756033835326,-800.0,0.000249,9]
[381094774,1756033835336,-20249.10668328,0.000249,2]
[381094775,1756033835346,-150.0,0.00024903,4]
[381094776,1756033835356,-157.82197178,0.00024927,4]
[381094777,1756033835366,-866.0,0.0002493,2]
[381094778,1756033835385,-150.0,0.00024931,4]
[381094779,1756033835395,-150.0,0.00024932,2]
[381094780,1756033835405,-500.0,0.00024932,2]
[381094781,1756033835416,-150.0,0.00024932,2]
[381094782,1756033835425,-173.67,0.00024934,2]
[381094783,1756033835435,-150.0,0.0002494,4]
[381094784,1756033835444,-150.0,0.0002494,4]
[381094785,1756033835457,-150.0,0.0002494,4]
[381094786,1756033835467,-168.0,0.00024948,2]
[381094787,1756033835476,-150.0,0.00024952,4]
[381094788,1756033835486,-157.82197178,0.00024954,4]
[381094789,1756033835502,-150.0,0.00024956,4]
[381094790,1756033835511,-150.0,0.00024968,4]
[381094791,1756033835520,-151.0,0.0002497,7]
[381094792,1756033835529,-151.0,0.0002497,7]
[381094793,1756033835539,-178.306974,0.0002497,7]
[381094794,1756033835548,-151.0,0.0002497,7]
[381094795,1756033835559,-151.0,0.0002498,7]
[381094796,1756033835568,-151.0,0.0002498,7]
[381094797,1756033835578,-151.0,0.0002498,7]
[381094798,1756033835587,-151.0,0.0002498,7]
[381094799,1756033835597,-151.0,0.0002498,7]
[381094800,1756033835606,-151.0,0.0002498,7]
[381094801,1756033835615,-151.0,0.0002498,7]
[381094802,1756033835624,-151.0,0.0002498,7]
[381094803,1756033835634,-151.0,0.0002498,7]
[381094804,1756033835643,-151.0,0.0002498,7]
[381094805,1756033835652,-151.0,0.0002498,7]
[381094806,1756033835662,-151.0,0.0002498,7]
[381094807,1756033835672,-249.169339,0.0002498,7]
[381094808,1756033835681,-249.169339,0.0002498,7]
[381094809,1756033835691,-249.169339,0.0002498,7]
[381094810,1756033835701,-249.169339,0.0002498,7]
[381094811,1756033835710,-151.0,0.0002498,7]
[381094812,1756033835721,-151.0,0.0002498,7]
[381094813,1756033835731,-151.0,0.0002498,7]
[381094814,1756033835742,-151.0,0.0002498,7]
[381094815,1756033835752,-151.0,0.0002498,7]
[381094816,1756033835762,-151.0,0.0002498,7]
[381094817,1756033835771,-151.0,0.0002498,7]
[381094818,1756033835781,-151.0,0.0002498,7]
[381094819,1756033835790,-157.82197178,0.00024981,4]
[381094820,1756033835800,-150.0,0.00024989,4]
[381094821,1756033835810,-151.0,0.0002499,7]
[381094822,1756033835819,-151.0,0.0002499,7]
[381094823,1756033835832,-151.0,0.0002499,7]
[381094824,1756033835843,-183.620038,0.0002499,7]
[381094825,1756033835852,-10423.32544866,0.0002499,3]
[381094826,1756033835868,-56278.92766404,0.0002499,3]
[381094827,1756033835877,-343.134684,0.0002499,7]
[381094828,1756033835887,-343.134684,0.0002499,7]
[381094829,1756033835896,-151.0,0.0002499,7]
[381094830,1756033835907,-151.0,0.0002499,7]
[381094831,1756033835917,-343.134684,0.0002499,7]
[381094832,1756033835926,-343.134684,0.0002499,7]
[381094833,1756033835935,-151.925403,0.0002499,7]
[381094834,1756033835944,-185.233524,0.0002499,7]
[381094835,1756033835953,-185.233524,0.0002499,7]
[381094836,1756033835963,-185.233524,0.0002499,7]
[381094837,1756033835972,-185.233524,0.0002499,7]
[381094838,1756033835981,-151.0,0.0002499,7]
[381094839,1756033835990,-1170.25,0.0002499,2]
[381094840,1756033836000,-150.0,0.00024991,4]
[381094841,1756033836010,-277.35679052,0.00024993,2]
[381094842,1756033836019,-300.0,0.00024999,10]
[381094843,1756033836029,-151.0,0.00024999,7]
[381094844,1756033836038,-151.0,0.00024999,7]
[381094845,1756033836047,-151.0,0.00024999,7]
[381094846,1756033836057,-196.073504,0.00024999,7]
[381094847,1756033836066,-151.0,0.00024999,7]
[381094848,1756033836077,-216.635744,0.00024999,7]
[381094849,1756033836086,-1521.04,0.00025,7]
[381094850,1756033836096,-6006.0,0.00025,3]
[381094851,1756033836106,-160.0,0.00025,3]
[381094852,1756033836115,-213.64,0.00025,7]
[381094853,1756033836124,-4105.73413165,0.00025,2]
[381094854,1756033836134,-15001.06360134,0.00025,2]
[381094855,1756033836143,-202.91657635,0.00025,2]
[381094856,1756033836153,-1745.16989765,0.00025,2]
[381094857,1756033836163,-267.84553948,0.00025,2]
[381094858,1756033836172,-2976.16615587,0.00025,2]
[381094859,1756033836182,-3162.09876666,0.00025,2]
[381094860,1756033836192,-6912.4625346,0.00025,2]
[381094861,1756033836201,-1040.59976621,0.00025,2]
[381094862,1756033836210,-163.55875931,0.00025,2]
[381094863,1756033836219,-304.2,0.00025,7]
[381094864,1756033836229,-912.62,0.00025,7]
[381094865,1756033836239,-151.0,0.00025,7]
[381094866,1756033836248,-151.0,0.00025,7]
[381094867,1756033836257,-151.0,0.00025,7]
[381094868,1756033836267,-41900.0,0.00025,2]
[381094869,1756033836276,-844.35788172,0.00025,3]
[381094870,1756033836285,-458.63746581,0.00025,3]
[381094871,1756033836295,-157.82197178,0.00025008,4]
[381094872,1756033836304,-150.0,0.00025008,4]
[381094873,1756033836313,-150.0,0.00025008,4]
[381094874,1756033836323,-150.0,0.00025008,4]
[381094875,1756033836333,-150.0,0.00025008,4]
[381094876,1756033836343,-3099.47162438,0.00025015,2]
[381094877,1756033836352,-151.0,0.00025035,7]
[381094878,1756033836361,-235.890622,0.00025035,7]
[381094879,1756033836370,-157.82197178,0.00025035,4]
[381094880,1756033836383,-150.0,0.00025036,4]
[381094881,1756033836393,-150.0,0.00025043,4]
[381094882,1756033836402,-150.0,0.00025043,4]
[381094883,1756033836412,-150.0,0.00025047,2]
[381094884,1756033836423,-150.0,0.00025047,4]
[381094885,1756033836432,-150.0,0.00025061,4]
[381094886,1756033836443,-157.82197178,0.00025062,4]
[381094887,1756033836453,-150.0,0.00025077,4]
[381094888,1756033836467,-155.37178765,0.00025081,2]
[381094889,1756033836477,-11854.54829192,0.00025083,2]
[381094890,1756033836487,-157.82197178,0.00025089,4]
[381094891,1756033836497,-150.0,0.00025089,4]
[381094892,1756033836506,-150.0,0.00025094,4]
[381094893,1756033836516,-183.0,0.000251,2]
[381094894,1756033836525,-782.64102498,0.00025102,2]
[381094895,1756033836535,-150.0,0.00025105,4]
[381094896,1756033836543,-150.0,0.00025113,4]
[381094897,1756033836552,-157.82197178,0.00025116,4]
[381094898,1756033836562,-238.0,0.0002512,2]
[381094899,1756033836571,-150.0,0.0002512,4]
[381094900,1756033836581,-168.0,0.00025138,2]
[381094901,1756033836590,-157.82197178,0.00025144,4]
[381094902,1756033836599,-150.0,0.00025146,4]
[381094903,1756033836609,-150.0,0.00025146,4]
[381094904,1756033836618,-150.0,0.00025146,4]
[381094905,1756033836627,-150.0,0.00025164,4]
[381094906,1756033836637,-150.0,0.00025166,4]
[381094907,1756033836646,-150.0,0.00025166,2]
[381094908,1756033836655,-1082.49760217,0.00025168,2]
[381094909,1756033836665,-1379.65380668,0.0002517,2]
[381094910,1756033836674,-157.82197178,0.00025171,4]
[381094911,1756033836683,-1676.8100112,0.00025171,2]
[381094912,1756033836693,-500.0,0.00025173,2]
[381094913,1756033836702,-432.52438624,0.00025173,2]
[381094914,1756033836711,-500.0,0.00025173,2]
[381094915,1756033836720,-500.0,0.00025173,2]
[381094916,1756033836729,-1973.96621571,0.00025173,2]
[381094917,1756033836739,-2271.12242023,0.00025175,2]
[381094918,1756033836748,-2568.27862474,0.00025176,2]
[381094919,1756033836757,-2865.43482926,0.00025178,2]
[381094920,1756033836767,-3162.59103378,0.0002518,2]
[381094921,1756033836776,-300.0,0.00025181,10]
[381094922,1756033836786,-343.134684,0.00025181,7]
[381094923,1756033836795,-343.134684,0.00025181,7]
[381094924,1756033836805,-151.0,0.00025181,7]
[381094925,1756033836815,-343.134684,0.00025181,7]
[381094926,1756033836824,-343.134684,0.00025181,7]
[381094927,1756033836834,-185.233524,0.00025181,7]
[381094928,1756033836844,-185.233524,0.00025181,7]
[381094929,1756033836854,-185.233524,0.00025181,7]
[381094930,1756033836863,-185.233524,0.00025181,7]
[381094931,1756033836873,-65237.37350622,0.00025182,3]
[381094933,1756033837971,-1420.17304353,0.00025182,3]
[381094935,1756033837983,-44.70656295,0.00025182,3]
[381094936,1756033837994,-230.00191397,0.00025182,3]
[381094937,1756033838055,-282.60556155,0.00023899,2]
[381094938,1756033838064,-69.26939815,0.00025182,3]
[381094939,1756033838075,-1676.729995,0.00025182,3]
[381094940,1756033838134,-949.06253279,0.00025182,3]
[381094941,1756033838145,-1690.83748651,0.00025182,3]
[381094942,1756033838176,-302.020004,0.00025182,3]
[381094976,1756033840690,-212.11701231,0.00023122,2]
[381094978,1756033840700,-166.11,0.00024157,2]
[381094980,1756033840709,-166.11,0.00024724,2]
[381094982,1756033840719,-166.11,0.0002479,2]
[381094984,1756033840728,-166.11,0.00024863,2]
[381094986,1756033840738,-166.11,0.0002497,2]
[381094988,1756033840748,-151.0,0.0002499,7]
[381094990,1756033840758,-151.0,0.00025176,7]
[381094992,1756033840768,-10111.58360154,0.00025182,3]
[381094995,1756033840780,-2074.55749776,0.00025182,3]
[381094997,1756033840791,-3110.01716113,0.00025182,3]
[381094999,1756033840803,-2048.003565,0.00025182,3]
[381095001,1756033840815,-3158.92017496,0.00025182,3]
[381095003,1756033840827,-826.10919529,0.00025182,3]
[381095005,1756033840838,-807.36033301,0.00025182,2]
[381095013,1756033840904,-151.0,0.0002499,7]
[381095015,1756033840914,-2652.38690528,0.00025182,2]
[381095017,1756033840924,-150.0,0.00025187,4]
[381095019,1756033840934,-126.41309472,0.00025187,4]
[381095022,1756033840946,-23.58690528,0.00025187,4]
[381095024,1756033840956,-151.16,0.00025188,2]
[381095026,1756033840966,-168.0,0.0002519,2]
[381095028,1756033840976,-300.0,0.0002519,10]
[381095030,1756033840986,-300.0,0.00025191,10]
[381095032,1756033840996,-300.0,0.00025191,10]
[381095034,1756033841006,-2087.22445472,0.00025191,3]
[381095074,1756033841937,-212.11701231,0.000228,3]
[381095075,1756033841947,-151.0,0.0002499,7]
[381095076,1756033841957,-151.0,0.00025176,7]
[381095077,1756033841967,-151.0,0.00025176,7]
[381095078,1756033841978,-1417.55298769,0.00025191,3]
[381095079,1756033841998,-609.8673,0.00025191,3]
[381095091,1756033843257,-212.11701231,0.000248,3]
[381095092,1756033843267,-212.11701231,0.0002489,7]
[381095093,1756033843277,-155.640941,0.0002499,7]
[381095094,1756033843287,-645.8250344,0.00025191,3]
[381095107,1756033846447,-815.4139606,0.00024797,2]
[381095108,1756033846457,-804.5860594,0.00025191,3]
[381095109,1756033846581,-2382.2498,0.00025191,3]
[381095112,1756033846645,-518.0,0.00025191,3]
[381095113,1756033846661,-1383.63258819,0.00025191,3]
[381095114,1756033846682,-3622.000004,0.00025191,3]
[381095126,1756034207330,608.22,0.00025191,120]
[381095129,1756034259554,-197.82389309,0.00013698,2]
[381095130,1756034259578,-247.77,0.00013699,2]
[381095131,1756034259601,-34554.40610691,0.00013699,2]
[381095132,1756034264108,-20000.0,0.00013699,2]
[381095133,1756034296399,-20000.0,0.00013699,2]
[381095134,1756034346033,151.18,0.00027815,120]
[381095140,1756034650359,-153.78707324,0.00013698,2]
[381095141,1756034650383,-615.0,0.00013698,2]
[381095142,1756034650406,-150.0,0.00013698,2]
[381095143,1756034658570,-19081.21292676,0.00013699,2]
[381095144,1756034720286,4171.30564089,9e-05,2]
[381095145,1756034732813,131087.80968836,0.0002,120]
[381095146,1756034737286,1524.56221732,9e-05,2]
[381095151,1756034791161,-666.0,0.00011999,2]
[381095152,1756034791186,-8489.93198432,0.00012,2]
[381095153,1756034791210,-20844.06801568,0.00012,2]
[381095164,1756034856790,300.0,0.000118,4]
[381095165,1756034858616,600.0,0.000119,4]
[381095166,1756034860587,1000.0,0.000139,5]
[381095173,1756034945344,-7885.44030261,0.000119,2]
[381095174,1756034945365,-670.83516426,0.000119,2]
[381095175,1756034945387,-1854.39211248,0.000119,2]
[381095176,1756034945408,-402.64830287,0.000119,2]
[381095177,1756034945429,-500.50048187,0.00011973,2]
[381095178,1756034945453,-500.0,0.00011973,2]
[381095179,1756034945476,-500.0,0.00011973,2]
[381095180,1756034945496,-501.23157072,0.00011973,2]
[381095181,1756034945517,-500.0,0.00011973,2]
[381095182,1756034945537,-500.0,0.00011973,2]
[381095183,1756034945561,-500.0,0.00011973,2]
[381095184,1756034945582,-500.0,0.00011973,2]
[381095185,1756034945603,-184.95206519,0.00011973,2]
[381095186,1756034948415,-315.04793481,0.00011973,2]
[381095187,1756034948436,-500.0,0.00011973,2]
[381095188,1756034948459,-315.79920726,0.00011999,2]
[381095189,1756034948479,-13869.15285793,0.00012,2]
[381095190,1756034949216,-15000.0,0.00012,2]
[381095191,1756034949786,-15000.0,0.00012,2]
[381095192,1756034950423,-15000.0,0.00012,2]
[381095193,1756034950782,-15000.0,0.00012,2]
[381095194,1756034951130,-13742.81784439,0.00012,2]
[381095195,1756034951152,-1257.18215561,0.00012,2]
[381095196,1756034951470,-9179.52725598,0.00012,2]
[381095197,1756034951493,-5820.47274402,0.00012,2]
[381095198,1756034952108,-500.0,0.00011973,2]
[381095199,1756034952133,-14500.0,0.00012,2]
[381095200,1756034952472,-15000.0,0.00012,2]
[381095201,1756034953085,-15000.0,0.00012,2]
[381095202,1756034953296,-15000.0,0.00012,2]
[381095203,1756034954596,-15000.0,0.00012,2]
[381095204,1756034954818,-15000.0,0.00012,2]
[381095205,1756034954917,-15000.0,0.00012,2]
[381095206,1756034954970,-15000.0,0.00012,2]
[381095207,1756034955223,-15000.0,0.00012,2]
[381095208,1756034955828,-15000.0,0.00012,2]
[381095209,1756034956230,-15000.0,0.00012,2]
[381095210,1756034956624,-15000.0,0.00012,2]
[381095211,1756034957210,-15000.0,0.00012,2]
[381095212,1756034957622,-15000.0,0.00012,2]
[381095213,1756034957893,-15000.0,0.00012,2]
[381095214,1756034958206,-15000.0,0.00012,2]
[381095215,1756034958553,-15000.0,0.00012,2]
[381095216,1756034959030,-15000.0,0.00012,2]
[381095217,1756034959480,-15000.0,0.00012,2]
[381095218,1756034960032,-15000.0,0.00012,2]
[381095219,1756034960548,-15000.0,0.00012,2]
[381095220,1756034961177,-15000.0,0.00012,2]
[381095221,1756034961684,-15000.0,0.00012,2]
[381095222,1756034962032,-15000.0,0.00012,2]
[381095223,1756034962501,-15000.0,0.00012,2]
[381095224,1756034963273,-15000.0,0.00012,2]
[381095225,1756034963736,-15000.0,0.00012,2]
[381095226,1756034964313,-15000.0,0.00012,2]
[381095227,1756034965843,-15000.0,0.00012,2]
[381095228,1756034966016,-15000.0,0.00012,2]
[381095229,1756034966246,-15000.0,0.00012,2]
[381095230,1756034967197,-15000.0,0.00012,2]
[381095231,1756034967831,-15000.0,0.00012,2]
[381095232,1756034968238,-15000.0,0.00012,2]
[381095233,1756034968543,-15000.0,0.00012,2]
[381095234,1756034969977,-15000.0,0.00012,2]
[381095235,1756034970691,-15000.0,0.00012,2]
[381095236,1756034971504,-15000.0,0.00012,2]
[381095237,1756034974524,-15000.0,0.00012,2]
[381095238,1756035012357,-500.51132325,0.00011973,2]
[381095239,1756035012378,-500.0,0.00011973,2]
[381095240,1756035012400,-500.0,0.00011973,2]
[381095241,1756035012422,-515.10101107,0.00011973,2]
[381095242,1756035012444,-10415.38766568,0.00012,2]
[381095243,1756035027633,-20000.0,0.00012,2]
[381095273,1756035032191,-78802.61003753,0.00012,2]
[381095274,1756035032202,-82575.76384818,0.00012,2]
[381095275,1756035032214,-3456.19724299,0.00012,2]
[381095276,1756035032237,-2973.22672103,0.00012,2]
[381095277,1756035032248,-615.50186006,0.00012,2]
[381095278,1756035032273,-1182.85446481,0.00012,2]
[381095279,1756035032284,-692.9863151,0.00012,2]
[381095280,1756035032371,-529.24915692,0.00012,2]
[381095290,1756035037297,-2447.99999991,0.00012,2]
[381095302,1756035037406,-986.84348,0.00012,2]
[381095351,1756035039468,-1145.0,0.00012,2]
[381095352,1756035040127,-4.00219356,0.00012,2]
[381095353,1756035040167,-546.60834834,0.00012,2]
[381095360,1756035042919,-237340.00000062,0.00012,2]
[381095362,1756035042993,-788.44434052,0.00012,2]
[381095398,1756035045425,-3129.7,0.00012,2]
[381095399,1756035045437,-4994.7001234,0.00012,2]
[381095400,1756035045448,-4967.00001,0.00012,2]
[381095401,1756035045459,-2561.17665116,0.00012,2]
[381095402,1756035045470,-655.7997767,0.00012,2]
[381095403,1756035045645,-3570.3000003,0.00012,2]
[381095404,1756035045710,-372.83912368,0.00012,2]
[381095405,1756035045722,-2382.2498,0.00012,2]
[381095409,1756035201487,9304.13214179,0.00011,2]
[381095410,1756035201511,15000.0,0.00011,2]
[381095411,1756035201534,15000.0,0.00011,2]
[381095412,1756035201556,10695.86785821,0.00011,2]
[381095413,1756035231478,4304.13214179,0.00011,2]
[381095414,1756035231500,15000.0,0.00011,2]
[381095415,1756035231521,10695.86785821,0.00011,2]
[381095421,1756035292245,-4094.47600394,0.000119,2]
[381095422,1756035292269,-283.74852471,0.000119,2]
[381095423,1756035292292,-4972.74688687,0.0001199,2]
[381095424,1756035292316,-150.0,0.00011999,2]
[381095425,1756035292342,-480.1533505,0.00011999,2]
[381095426,1756035292368,-10018.87523398,0.00012,2]
[381095432,1756035559720,7000.0,0.00028767,120]
[381095433,1756035568939,7000.0,0.00028767,120]
[381095434,1756035584875,6052.0,0.00028767,120]
[381095446,1756035868494,279.27,0.00028767,120]
[381095474,1756036231651,-300.10027738,0.00011899,2]
[381095475,1756036231702,-343.33,0.00011899,2]
[381095476,1756036231714,-556.56972262,0.00011899,2]
[381095477,1756036231723,-8282.35110155,0.000119,2]
[381095478,1756036231734,-274.83681637,0.000119,2]
[381095479,1756036231743,-500.46403506,0.00011973,2]
[381095480,1756036231752,-150.0,0.00011988,2]
[381095481,1756036231764,-118.84657197,0.00011988,2]
[381095482,1756036231807,-835.78253235,0.00011988,2]
[381095483,1756036231817,-164.21746765,0.00011988,2]
[381095589,1756036237550,-345.87173433,0.00011988,2]
[381095590,1756036237562,-436.0,0.00011988,2]
[381095591,1756036237605,-270.59495059,0.00011988,2]
[381095592,1756036237615,-399.71504921,0.00011989,2]
[381095593,1756036237626,-431.69598331,0.00011989,2]
[381095594,1756036237658,-647.32816829,0.00011989,2]
[381095595,1756036237668,-1740.79424906,0.00011989,2]
[381095596,1756036237677,-2002.8492973,0.00011989,2]
[381095597,1756036237688,-2264.90434555,0.00011989,2]
[381095598,1756036237699,-632.25701093,0.0001199,2]
[381095599,1756036237718,-1894.70238286,0.0001199,2]
[381095600,1756036237729,-737.31761713,0.0001199,2]
[381095601,1756036237740,-1417.74917715,0.0001199,2]
[381095602,1756036237767,-487.29264,0.0001199,2]
[381095603,1756036237779,-146.65500776,0.0001199,2]
[381095604,1756036237788,-2404.03164494,0.0001199,2]
[381095606,1756036237822,-647.03784533,0.0001199,2]
[381095607,1756036237831,-500.0,0.00011993,2]
[381095609,1756036237841,-274.52666354,0.00011993,2]
[381095611,1756036237851,-336.10734535,0.00011999,2]
[381095613,1756036237860,-9816.72799446,0.00012,2]
[381095781,1756036239644,-4596.93288329,0.00012,2]
[381095787,1756036239701,-2249.95340702,0.00012,2]
[381095790,1756036239713,-1768.49131959,0.00012,2]
[381095944,1756036241168,-4039.03805034,0.00012,2]
[381095946,1756036241182,-5193.45246644,0.00012,2]
[381095958,1756036241285,-6818.30011143,0.00012,2]
[381096094,1756036242732,-66657.64910273,0.00012,2]
[381096097,1756036242743,-25186.3396482,0.00012,2]